[Event "21st Indian-chT Women 2023-24"]
[Site "Dharamsala"]
[Date "2024.03.31"]
[Round "3.4"]
[White "Salonika, Saina"]
[Black "Bindu, Saritha K."]
[Result "1-0"]
[ECO "B01"]
[WhiteElo "2096"]
[BlackElo "1719"]
[Annotator "RC"]
[PlyCount "57"]
[EventDate "2024.03.28"]
[EventType "team-tourn"]
[EventCountry "IND"]
[SourceTitle "playchess.com"]
[Source "ChessBase"]
[SourceQuality "1"]
[TimeControl "5400+30"]

1. e4 {[%emt 0:00:04]} d5 {[%emt 0:00:11]} 2. exd5 {[%emt 0:00:06]} Qxd5 {[%emt 0:00:04]} 3. Nc3 {[%emt 0:00:06]} Qa5 {[%emt 0:00:05]} 4. d4 {[%emt 0:00:04]} Nf6 {[%emt 0:00:06]} 5. Nf3 {[%emt 0:00:17]} c6 {[%emt 0:00:43]} 6. Bc4 {[%emt 0:02:00]} Bf5 {[%emt 0:00:18]} 7. Bd2 {[%emt 0:00:30]} e6 {[%emt 0:00:37]} 8. Nd5 {[%emt 0:00:33]} Qd8 {[%emt 0:01:29]} 9. Nxf6+ {[%emt 0:00:05]} gxf6 {[%emt 0:00:30]} 10. O-O {[%emt 0:00:55]} Nd7 {[%emt 0:01:11]} 11. Re1 {[%emt 0:01:04]} Qc7 {[%emt 0:02:12]} 12. Nh4 {[%emt 0:01:01]} Bg6 {[%emt 0:00:52]} 13. Bxe6 {[%emt 0:02:30]} O-O-O {[%emt 0:16:15]} 14. Bh3 {[%emt 0:09:14]} Bd6 {[%emt 0:00:29]} 15. g3 {[%emt 0:00:36]} Kb8 {[%emt 0:01:01]} 16. c3 {[%emt 0:09:33]} Rhg8 {[%emt 0:05:25]} 17. Qf3 {[%emt 0:03:15]} Qa5 {[%emt 0:09:44]} 18. Bf4 {[%emt 0:05:04]} Qc7 {[%emt 0:02:38]} 19. Bd2 {[%emt 0:07:16]} Ka8 {[%emt 0:05:40]} 20. b4 {[%emt 0:03:18]} Rde8 {[%emt 0:03:40]} 21. c4 {[%emt 0:02:11]} Be7 {[%emt 0:01:24]} 22. c5 {[%emt 0:01:15]} f5 {[%emt 0:04:22]} 23. Nxf5 {[%emt 0:02:08]} Bxf5 {[%emt 0:01:05]} 24. Qxf5 {[%emt 0:00:33]} Nf6 {[%emt 0:00:07]} 25. Re2 {[%emt 0:03:10]} Bd8 {[%emt 0:03:10]} 26. Rxe8 {[%emt 0:02:12]} Rxe8 {[%emt 0:00:26]} 27. Bf4 {[%emt 0:00:06]} Qd7 {[%emt 0:02:40]} 28. Qxd7 {[%emt 0:00:06]} Nxd7 {[%emt 0:00:06]} 29. Bxd7 {[%emt 0:00:03]} 1-0

[Event "21st Indian-chT Women 2023-24"]
[Site "Dharamsala"]
[Date "2024.03.31"]
[Round "3.5"]
[White "Gade Sharanya"]
[Black "Abishna Anojan"]
[Result "1-0"]
[ECO "E32"]
[WhiteElo "1728"]
[BlackElo "1635"]
[Annotator "NA RC COMBH"]
[PlyCount "73"]
[EventDate "2024.03.28"]
[EventType "team-tourn"]
[EventCountry "IND"]
[SourceTitle "playchess.com"]
[Source "ChessBase"]
[SourceQuality "1"]
[TimeControl "5400+30"]

1. d4 {[%emt 0:00:02]} Nf6 {[%emt 0:00:07]} 2. c4 {[%emt 0:00:05]} e6 {[%emt 0:00:03]} 3. Nc3 {[%emt 0:00:06]} Bb4 {[%emt 0:00:10]} 4. Qc2 {[%emt 0:00:15]} b6 {[%emt 0:00:05]} 5. e4 {[%emt 0:00:31]} Bxc3+ {[%emt 0:00:24]} 6. bxc3 {[%emt 0:00:18]} Bb7 {[%emt 0:01:33]} 7. Bd3 {[%emt 0:00:35]} d6 {[%emt 0:00:08]} 8. f4 {[%emt 0:01:04]} Nbd7 {[%emt 0:00:14]} 9. Nf3 {[%emt 0:00:58]} h6 {[%emt 0:18:44]} 10. O-O {[%emt 0:02:37]} e5 {[%emt 0:02:09]} 11. fxe5 {[%emt 0:03:05]} dxe5 {[%emt 0:00:06]} 12. dxe5 {[%emt 0:00:10]} Ng4 {[%emt 0:00:09]} 13. e6 {[%emt 0:00:23]} fxe6 {[%emt 0:00:26]} 14. Nd4 {[%emt 0:00:26]} Nc5 {[%emt 0:05:09]} 15. e5 {[%emt 0:12:08]} Qh4 {[%emt 0:18:18]} 16. Bg6+ {[%emt 0:01:43]} Kd7 {[%emt 0:02:42]} 17. Rf7+ {[%emt 0:03:57]} Kc8 {[%emt 0:01:00]} 18. Bf4 {[%emt 0:00:30]} a6 {[%emt 0:04:51]} 19. Nf3 {[%emt 0:13:18]} Qd8 {[%emt 0:03:07]} 20. Rd1 {[%emt 0:01:42]} Qg8 {[%emt 0:00:09]} 21. Re7 {[%emt 0:01:24]} Bc6 {[%emt 0:00:10]} 22. Nd4 {[%emt 0:11:39]} Ba4 {[%emt 0:06:17]} 23. Nb3 {[%emt 0:02:18]} Nxb3 {[%emt 0:01:20]} 24. axb3 {[%emt 0:00:26]} Qf8 {[%emt 0:00:05]} 25. Rf7 {[%emt 0:04:07]} Qc5+ {[%emt 0:00:08]} 26. Rd4 {[%emt 0:00:07]} Rd8 {[%emt 0:06:44]} 27. bxa4 {[%emt 0:06:01]} Rxd4 {[%emt 0:00:45]} 28. cxd4 {[%emt 0:00:08]} Qxd4+ {[%emt 0:00:09]} 29. Kf1 {[%emt 0:00:08]} Ra7 {[%emt 0:02:23]} 30. Rf8+ {[%emt 0:00:33]} Kd7 {[%emt 0:00:18]} 31. Qd3 {[%emt 0:01:25]} Qxd3+ {[%emt 0:00:51]} 32. Bxd3 {[%emt 0:00:06]} g5 {[%emt 0:00:30]} 33. h3 {[%emt 0:00:41]} Ke7 {[%emt 0:00:06]} 34. Rh8 {[%emt 0:00:14]} gxf4 {[%emt 0:00:06]} 35. hxg4 {[%emt 0:00:03]} Kf7 {[%emt 0:00:11]} 36. Be4 {[%emt 0:00:09]} c6 {[%emt 0:00:17]} 37. Rh7+ {[%emt 0:00:38]} 1-0

[Event "21st Indian-chT Women 2023-24"]
[Site "Dharamsala"]
[Date "2024.03.31"]
[Round "3.6"]
[White "Jayashree, P.K."]
[Black "Velpula Sarayu"]
[Result "0-1"]
[ECO "A48"]
[WhiteElo "1846"]
[BlackElo "2389"]
[Annotator "RC"]
[PlyCount "68"]
[EventDate "2024.03.28"]
[EventType "team-tourn"]
[EventCountry "IND"]
[SourceTitle "playchess.com"]
[Source "ChessBase"]
[SourceQuality "1"]
[TimeControl "5400+30"]

1. d4 {[%emt 0:00:08]} Nf6 {[%emt 0:00:23]} 2. Nf3 {[%emt 0:00:12]} g6 {[%emt 0:00:31]} 3. b3 {[%emt 0:00:16]} Bg7 {[%emt 0:00:31]} 4. Bb2 {[%emt 0:00:08]} O-O {[%emt 0:00:57]} 5. g3 {[%emt 0:01:18]} c5 {[%emt 0:01:12]} 6. dxc5 {[%emt 0:06:06]} Qa5+ {[%emt 0:00:35]} 7. Nbd2 {[%emt 0:01:01]} Qxc5 {[%emt 0:00:32]} 8. Bg2 {[%emt 0:00:30]} Ng4 {[%emt 0:00:47]} 9. Bd4 {[%emt 0:04:08]} Bxd4 {[%emt 0:00:33]} 10. Nxd4 {[%emt 0:00:06]} Qxd4 {[%emt 0:00:16]} 11. e3 {[%emt 0:00:14]} Qc3 {[%emt 0:02:00]} 12. O-O {[%emt 0:00:56]} d6 {[%emt 0:00:40]} 13. Ne4 {[%emt 0:00:57]} Qc7 {[%emt 0:00:56]} 14. h3 {[%emt 0:02:11]} Nf6 {[%emt 0:00:33]} 15. Nxf6+ {[%emt 0:00:19]} exf6 {[%emt 0:00:02]} 16. Qd4 {[%emt 0:00:34]} Qe7 {[%emt 0:00:12]} 17. Rad1 {[%emt 0:00:53]} Rd8 {[%emt 0:00:13]} 18. c4 {[%emt 0:00:39]} Nc6 {[%emt 0:00:44]} 19. Qd2 {[%emt 0:01:15]} Bf5 {[%emt 0:00:13]} 20. Rfe1 {[%emt 0:01:12]} Be6 {[%emt 0:13:56]} 21. e4 {[%emt 0:01:53]} Qd7 {[%emt 0:04:02]} 22. Kh2 {[%emt 0:01:12]} h5 {[%emt 0:00:52]} 23. Qf4 {[%emt 0:04:30]} Qe7 {[%emt 0:01:08]} 24. Qh6 {[%emt 0:01:15]} a6 {[%emt 0:01:33]} 25. Qe3 {[%emt 0:01:51]} Qc7 {[%emt 0:04:36]} 26. Qf4 {[%emt 0:03:23]} Kg7 {[%emt 0:00:32]} 27. Re2 {[%emt 0:03:03]} Qb6 {[%emt 0:03:47]} 28. Qh4 {[%emt 0:03:59]} g5 {[%emt 0:06:18]} 29. Qxh5 {[%emt 0:00:26]} Ne5 {[%emt 0:00:07]} 30. Red2 {[%emt 0:03:09]} g4 {[%emt 0:02:37]} 31. c5 {[%emt 0:06:01]} Qxc5 {[%emt 0:01:03]} 32. Rd5 {[%emt 0:00:09]} Bxd5 {[%emt 0:00:42]} 33. exd5 {[%emt 0:03:05]} Qc2 {[%emt 0:01:20]} 34. Rd4 {[%emt 0:01:04]} Rh8 {[%emt 0:00:37]} 0-1

[Event "21st Indian-chT Women 2023-24"]
[Site "Dharamsala"]
[Date "2024.03.31"]
[Round "3.7"]
[White "Sai Mahati Alapati"]
[Black "Rebecca Jesumarian"]
[Result "1/2-1/2"]
[ECO "E97"]
[WhiteElo "2155"]
[BlackElo "1873"]
[Annotator "RC"]
[PlyCount "134"]
[EventDate "2024.03.28"]
[EventType "team-tourn"]
[EventCountry "IND"]
[SourceTitle "playchess.com"]
[Source "ChessBase"]
[SourceQuality "1"]
[TimeControl "5400+30"]

1. d4 {[%emt 0:00:11]} Nf6 {[%emt 0:00:15]} 2. c4 {[%emt 0:00:18]} g6 {[%emt 0:00:13]} 3. Nc3 {[%emt 0:00:15]} Bg7 {[%emt 0:00:06]} 4. e4 {[%emt 0:00:11]} d6 {[%emt 0:00:08]} 5. Nf3 {[%emt 0:00:13]} O-O {[%emt 0:00:07]} 6. Be2 {[%emt 0:00:09]} e5 {[%emt 0:00:05]} 7. O-O {[%emt 0:00:20]} Nc6 {[%emt 0:00:09]} 8. d5 {[%emt 0:00:17]} Ne7 {[%emt 0:00:05]} 9. b4 {[%emt 0:00:18]} a5 {[%emt 0:01:12]} 10. bxa5 {[%emt 0:00:20]} Rxa5 {[%emt 0:06:05]} 11. a4 {[%emt 0:01:22]} Nd7 {[%emt 0:09:17]} 12. Ba3 {[%emt 0:08:32]} h6 {[%emt 0:02:47]} 13. Bb4 {[%emt 0:00:50]} Ra8 {[%emt 0:00:10]} 14. Ne1 {[%emt 0:02:32]} f5 {[%emt 0:00:27]} 15. Nd3 {[%emt 0:03:55]} Nf6 {[%emt 0:06:35]} 16. f3 {[%emt 0:12:08]} c5 {[%emt 0:03:00]} 17. dxc6 {[%emt 0:09:01]} Nxc6 {[%emt 0:01:11]} 18. Ba3 {[%emt 0:02:33]} Be6 {[%emt 0:03:04]} 19. Nf2 {[%emt 0:06:11]} Nd4 {[%emt 0:01:49]} 20. Bd3 {[%emt 0:03:22]} Rf7 {[%emt 0:22:28]} 21. Nb5 {[%emt 0:11:07]} Nxb5 {[%emt 0:08:30]} 22. axb5 {[%emt 0:01:18]} fxe4 {[%emt 0:04:30]} 23. Nxe4 {[%emt 0:05:05]} Nxe4 {[%emt 0:05:00]} 24. Bxe4 {[%emt 0:01:48]} Bxc4 {[%emt 0:00:32]} 25. Bxg6 {[%emt 0:02:37]} Rf6 {[%emt 0:02:52]} 26. Bd3 {[%emt 0:00:52]} Qb6+ {[%emt 0:01:04]} 27. Kh1 {[%emt 0:04:35]} Qxb5 {[%emt 0:00:52]} 28. Rb1 {[%emt 0:04:38]} Qd5 {[%emt 0:01:16]} 29. Bxc4 {[%emt 0:02:10]} Qxc4 {[%emt 0:00:04]} 30. Rb4 {[%emt 0:01:47]} Qc3 {[%emt 0:03:06]} 31. Rb3 {[%emt 0:00:49]} Qc6 {[%emt 0:00:40]} 32. Qb1 {[%emt 0:01:34]} d5 {[%emt 0:15:16]} 33. Rc1 {[%emt 0:01:46]} Qe6 {[%emt 0:00:34]} 34. Bc5 {[%emt 0:02:23]} Rc8 {[%emt 0:01:41]} 35. Rxb7 {[%emt 0:02:14]} Qf5 {[%emt 0:00:54]} 36. Qb3 {[%emt 0:03:24]} e4 {[%emt 0:01:05]} 37. Rb8 {[%emt 0:02:53]} Rxb8 {[%emt 0:00:48]} 38. Qxb8+ {[%emt 0:00:02]} Kh7 {[%emt 0:00:06]} 39. Qg3 {[%emt 0:01:43]} exf3 {[%emt 0:00:55]} 40. Qxf3 {[%emt 0:00:52]} Qxf3 {[%emt 0:00:30]} 41. gxf3 {[%emt 0:00:01]} Rxf3 {[%emt 0:00:21]} 42. Rd1 {[%emt 0:00:07]} Rf5 {[%emt 0:00:14]} 43. Bd4 {[%emt 0:00:15]} Bxd4 {[%emt 0:00:31]} 44. Rxd4 {[%emt 0:00:02]} Kg7 {[%emt 0:00:22]} 45. Kg2 {[%emt 0:00:31]} Kf6 {[%emt 0:00:04]} 46. Kg3 {[%emt 0:03:04]} Ke5 {[%emt 0:00:15]} 47. Rd1 {[%emt 0:00:58]} d4 {[%emt 0:00:25]} 48. Kg4 {[%emt 0:00:33]} Rf6 {[%emt 0:00:33]} 49. Re1+ {[%emt 0:01:01]} Kd5 {[%emt 0:00:13]} 50. Re8 {[%emt 0:01:14]} d3 {[%emt 0:00:33]} 51. Rd8+ {[%emt 0:00:01]} Rd6 {[%emt 0:01:44]} 52. Rxd6+ {[%emt 0:00:25]} Kxd6 {[%emt 0:00:05]} 53. Kf3 {[%emt 0:00:03]} Kd5 {[%emt 0:00:05]} 54. Ke3 {[%emt 0:00:03]} Kc4 {[%emt 0:00:03]} 55. Kd2 {[%emt 0:00:08]} Kd4 {[%emt 0:00:33]} 56. h4 {[%emt 0:00:25]} h5 {[%emt 0:01:44]} 57. Kd1 {[%emt 0:00:08]} Ke3 {[%emt 0:00:33]} 58. Ke1 {[%emt 0:00:02]} Ke4 {[%emt 0:00:45]} 59. Kd2 {[%emt 0:00:11]} Kd4 {[%emt 0:00:08]} 60. Kd1 {[%emt 0:00:11]} Ke3 {[%emt 0:00:34]} 61. Ke1 {[%emt 0:00:10]} Kf3 {[%emt 0:00:03]} 62. Kd2 {[%emt 0:00:08]} Kg4 {[%emt 0:00:07]} 63. Kxd3 {[%emt 0:00:08]} Kxh4 {[%emt 0:00:15]} 64. Ke2 {[%emt 0:00:05]} Kg3 {[%emt 0:00:13]} 65. Kf1 {[%emt 0:00:02]} Kh2 {[%emt 0:00:07]} 66. Kf2 {[%emt 0:00:05]} h4 {[%emt 0:00:08]} 67. Kf1 {[%emt 0:00:23]} h3 {[%emt 0:00:10]} 1/2-1/2

[Event "21st Indian-chT Women 2023-24"]
[Site "Dharamsala"]
[Date "2024.04.01"]
[Round "4.1"]
[White "Vishwa Vasnawala"]
[Black "Gade Sharanya"]
[Result "0-1"]
[ECO "E04"]
[WhiteElo "2111"]
[BlackElo "1728"]
[Annotator "NA"]
[PlyCount "82"]
[EventDate "2024.03.28"]
[EventType "team-tourn"]
[EventCountry "IND"]
[SourceTitle "playchess.com"]
[Source "ChessBase"]
[SourceQuality "1"]
[TimeControl "5400+30"]

1. d4 {[%emt 0:00:06]} Nf6 {[%emt 0:00:08]} 2. c4 {[%emt 0:00:05]} e6 {[%emt 0:00:10]} 3. g3 {[%emt 0:00:11]} d5 {[%emt 0:00:57]} 4. Nf3 {[%emt 0:00:24]} Bb4+ {[%emt 0:02:27]} 5. Bd2 {[%emt 0:00:17]} Be7 {[%emt 0:01:13]} 6. Bg2 {[%emt 0:00:36]} dxc4 {[%emt 0:00:55]} 7. Qa4+ {[%emt 0:06:12]} Nbd7 {[%emt 0:08:57]} 8. O-O {[%emt 0:05:07]} O-O {[%emt 0:03:47]} 9. Qxc4 {[%emt 0:01:12]} c6 {[%emt 0:01:24]} 10. Nc3 {[%emt 0:02:25]} e5 {[%emt 0:06:50]} 11. d5 {[%emt 0:34:09]} Nb6 {[%emt 0:24:09]} 12. Qd3 {[%emt 0:01:20]} Nbxd5 {[%emt 0:01:25]} 13. Nxe5 {[%emt 0:05:57]} Be6 {[%emt 0:04:10]} 14. Rfd1 {[%emt 0:10:45]} Qc7 {[%emt 0:04:08]} 15. Nf3 {[%emt 0:09:49]} Rad8 {[%emt 0:04:47]} 16. Nxd5 {[%emt 0:06:19]} Bxd5 {[%emt 0:01:51]} 17. Bf4 {[%emt 0:02:04]} Qb6 {[%emt 0:01:33]} 18. Be3 $1 {[%emt 0:03:59]} Qc7 {[%emt 0:13:36]} 19. Bf4 {[%emt 0:00:02]} Qb6 {[%emt 0:07:40]} 20. Be3 {[%emt 0:00:10]} c5 {[%emt 0:00:25]} 21. Qc2 {[%emt 0:01:26]} Ng4 {[%emt 0:02:31]} 22. Ng5 {[%emt 0:03:36]} g6 {[%emt 0:04:28]} 23. Bf4 {[%emt 0:03:21]} c4 {[%emt 0:01:53]} 24. Nh3 {[%emt 0:00:54]} Bxg2 {[%emt 0:00:25]} 25. Kxg2 {[%emt 0:00:09]} Qc6+ {[%emt 0:00:30]} 26. f3 {[%emt 0:01:27]} g5 {[%emt 0:01:29]} 27. Bc1 {[%emt 0:01:23]} Rxd1 {[%emt 0:01:02]} 28. Qxd1 {[%emt 0:00:02]} Rd8 {[%emt 0:00:02]} 29. Qc2 {[%emt 0:00:35]} h6 {[%emt 0:01:09]} 30. e4 {[%emt 0:00:41]} Ne5 {[%emt 0:00:15]} 31. Nf2 {[%emt 0:00:36]} Bc5 {[%emt 0:00:46]} 32. Qc3 {[%emt 0:00:38]} Bd4 {[%emt 0:00:38]} 33. Qa5 {[%emt 0:00:31]} b6 {[%emt 0:00:33]} 34. Qxa7 {[%emt 0:00:30]} Nxf3 {[%emt 0:00:35]} 35. Kxf3 {[%emt 0:00:29]} Qf6+ {[%emt 0:00:05]} 36. Bf4 {[%emt 0:00:14]} Bxf2 {[%emt 0:00:33]} 37. e5 {[%emt 0:00:13]} Qc6+ {[%emt 0:00:20]} 38. Kxf2 {[%emt 0:00:03]} gxf4 {[%emt 0:00:04]} 39. gxf4 {[%emt 0:01:28]} Rd2+ {[%emt 0:00:09]} 40. Ke1 {[%emt 0:00:34]} Rxh2 {[%emt 0:00:29]} 41. Qb8+ {[%emt 0:00:30]} Kh7 {[%emt 0:00:10]} 0-1

[Event "21st Indian-chT Women 2023-24"]
[Site "Dharamsala"]
[Date "2024.04.01"]
[Round "4.2"]
[White "Velpula Sarayu"]
[Black "Gomes, Mary Ann"]
[Result "1/2-1/2"]
[ECO "B45"]
[WhiteElo "2389"]
[BlackElo "2322"]
[Annotator "RC"]
[PlyCount "69"]
[EventDate "2024.03.28"]
[EventType "team-tourn"]
[EventCountry "IND"]
[SourceTitle "playchess.com"]
[Source "ChessBase"]
[SourceQuality "1"]
[TimeControl "5400+30"]

1. e4 {[%emt 0:00:27]} c5 {[%emt 0:00:06]} 2. Nf3 {[%emt 0:00:30]} e6 {[%emt 0:00:09]} 3. d4 {[%emt 0:00:30]} cxd4 {[%emt 0:00:06]} 4. Nxd4 {[%emt 0:00:27]} Nf6 {[%emt 0:00:08]} 5. Nc3 {[%emt 0:00:34]} Nc6 {[%emt 0:00:06]} 6. Nxc6 {[%emt 0:00:33]} bxc6 {[%emt 0:00:05]} 7. e5 {[%emt 0:00:26]} Nd5 {[%emt 0:00:07]} 8. Ne4 {[%emt 0:00:27]} Bb7 {[%emt 0:00:45]} 9. Be2 {[%emt 0:01:45]} c5 {[%emt 0:01:22]} 10. O-O {[%emt 0:03:09]} Qc7 {[%emt 0:00:07]} 11. Nd6+ {[%emt 0:02:58]} Bxd6 {[%emt 0:00:06]} 12. exd6 {[%emt 0:00:04]} Qc6 {[%emt 0:00:05]} 13. f3 {[%emt 0:03:16]} c4 {[%emt 0:00:20]} 14. Qd4 {[%emt 0:05:56]} O-O {[%emt 0:00:09]} 15. Bxc4 {[%emt 0:18:49]} Rfc8 {[%emt 0:04:38]} 16. Bxd5 {[%emt 0:05:16]} Qxd5 {[%emt 0:00:05]} 17. Qxd5 {[%emt 0:00:39]} Bxd5 {[%emt 0:00:06]} 18. Rf2 {[%emt 0:00:52]} Rc6 {[%emt 0:00:12]} 19. Bf4 {[%emt 0:02:19]} Rac8 {[%emt 0:00:12]} 20. Rc1 {[%emt 0:07:43]} f6 {[%emt 0:00:07]} 21. b3 {[%emt 0:03:28]} Rc3 {[%emt 0:01:56]} 22. Re2 {[%emt 0:03:49]} a5 {[%emt 0:00:06]} 23. Bg3 {[%emt 0:03:24]} a4 {[%emt 0:01:07]} 24. Be1 {[%emt 0:01:47]} R3c6 {[%emt 0:00:06]} 25. c4 {[%emt 0:09:48]} axb3 {[%emt 0:06:40]} 26. axb3 {[%emt 0:00:25]} Rxd6 {[%emt 0:00:27]} 27. Ra2 {[%emt 0:07:53]} Rb6 {[%emt 0:01:47]} 28. Rd1 {[%emt 0:00:53]} Bc6 {[%emt 0:00:44]} 29. b4 {[%emt 0:01:07]} d5 {[%emt 0:00:22]} 30. b5 {[%emt 0:01:17]} Be8 {[%emt 0:01:43]} 31. Bf2 {[%emt 0:02:49]} Rb7 {[%emt 0:06:14]} 32. cxd5 {[%emt 0:00:15]} Bxb5 {[%emt 0:02:28]} 33. dxe6 {[%emt 0:04:07]} Re7 {[%emt 0:00:25]} 34. Re1 {[%emt 0:02:54]} Bc4 {[%emt 0:01:22]} 35. Rc2 {[%emt 0:02:11]} 1/2-1/2

[Event "21st Indian-chT Women 2023-24"]
[Site "Dharamsala"]
[Date "2024.04.01"]
[Round "4.3"]
[White "Mohota, Nisha"]
[Black "Sai Mahati Alapati"]
[Result "1-0"]
[ECO "D45"]
[WhiteElo "2122"]
[BlackElo "2155"]
[Annotator "RC"]
[PlyCount "45"]
[EventDate "2024.03.28"]
[EventType "team-tourn"]
[EventCountry "IND"]
[SourceTitle "playchess.com"]
[Source "ChessBase"]
[SourceQuality "1"]
[TimeControl "5400+30"]

1. d4 {[%emt 0:00:16]} d5 {[%emt 0:00:19]} 2. c4 {[%emt 0:00:08]} c6 {[%emt 0:00:11]} 3. Nc3 {[%emt 0:00:14]} Nf6 {[%emt 0:00:23]} 4. e3 {[%emt 0:00:07]} e6 {[%emt 0:00:23]} 5. Nf3 {[%emt 0:00:08]} Nbd7 {[%emt 0:00:17]} 6. Qc2 {[%emt 0:00:15]} b6 {[%emt 0:00:27]} 7. Bd3 {[%emt 0:00:22]} Bb7 {[%emt 0:00:31]} 8. O-O {[%emt 0:00:31]} Bd6 {[%emt 0:09:24]} 9. e4 {[%emt 0:01:54]} dxe4 {[%emt 0:01:21]} 10. Nxe4 {[%emt 0:00:08]} Be7 {[%emt 0:05:09]} 11. Re1 {[%emt 0:12:41]} O-O {[%emt 0:08:01]} 12. Ne5 {[%emt 0:23:11]} h6 {[%emt 0:09:21]} 13. Be3 {[%emt 0:08:29]} c5 {[%emt 0:22:13]} 14. Rad1 {[%emt 0:10:46]} Nxe5 {[%emt 0:08:47]} 15. Nxf6+ {[%emt 0:03:17]} gxf6 {[%emt 0:00:17]} 16. dxe5 {[%emt 0:01:09]} Qc7 {[%emt 0:01:02]} 17. Bxh6 {[%emt 0:05:12]} f5 {[%emt 0:04:38]} 18. Re3 {[%emt 0:10:54]} Rfd8 {[%emt 0:01:39]} 19. Rg3+ {[%emt 0:01:06]} Kh8 {[%emt 0:02:49]} 20. Bg7+ {[%emt 0:02:40]} Kg8 {[%emt 0:01:01]} 21. Qe2 {[%emt 0:00:26]} f6 {[%emt 0:03:55]} 22. Bh6+ {[%emt 0:03:14]} Kh7 {[%emt 0:00:34]} 23. Qh5 {[%emt 0:00:29]} 1-0

[Event "21st Indian-chT Women 2023-24"]
[Site "Dharamsala"]
[Date "2024.04.01"]
[Round "4.4"]
[White "Kirthika B"]
[Black "Soumya, Swaminathan"]
[Result "0-1"]
[ECO "B33"]
[WhiteElo "1791"]
[BlackElo "2259"]
[Annotator "RC"]
[PlyCount "100"]
[EventDate "2024.03.28"]
[EventType "team-tourn"]
[EventCountry "IND"]
[SourceTitle "playchess.com"]
[Source "ChessBase"]
[SourceQuality "1"]
[TimeControl "5400+30"]

1. e4 {[%emt 0:00:03]} c5 {[%emt 0:00:10]} 2. Nf3 {[%emt 0:00:07]} Nc6 {[%emt 0:00:05]} 3. d4 {[%emt 0:00:07]} cxd4 {[%emt 0:00:04]} 4. Nxd4 {[%emt 0:00:04]} Qb6 {[%emt 0:00:05]} 5. Nb3 {[%emt 0:04:51]} Nf6 {[%emt 0:01:40]} 6. Nc3 {[%emt 0:02:30]} e6 {[%emt 0:00:52]} 7. Be3 {[%emt 0:02:41]} Qc7 {[%emt 0:00:33]} 8. a3 {[%emt 0:05:55]} a6 {[%emt 0:04:28]} 9. Be2 {[%emt 0:02:51]} b5 {[%emt 0:00:36]} 10. O-O {[%emt 0:03:27]} Be7 {[%emt 0:07:59]} 11. f4 {[%emt 0:04:04]} d6 {[%emt 0:02:46]} 12. Bf3 {[%emt 0:04:39]} Bb7 {[%emt 0:14:29]} 13. Qe2 {[%emt 0:05:40]} O-O {[%emt 0:01:00]} 14. Rad1 {[%emt 0:03:29]} b4 {[%emt 0:08:39]} 15. axb4 {[%emt 0:03:38]} Nxb4 {[%emt 0:06:03]} 16. Qf2 {[%emt 0:09:03]} Nd7 {[%emt 0:05:15]} 17. Nc1 {[%emt 0:09:21]} Bc6 {[%emt 0:05:28]} 18. Nd3 {[%emt 0:06:07]} a5 {[%emt 0:00:48]} 19. Ra1 {[%emt 0:07:02]} Qb7 {[%emt 0:01:55]} 20. Qe2 {[%emt 0:03:59]} Rfd8 {[%emt 0:14:43]} 21. Kh1 {[%emt 0:07:30]} Nb6 {[%emt 0:03:17]} 22. f5 {[%emt 0:08:06]} Nxd3 {[%emt 0:13:27]} 23. cxd3 {[%emt 0:01:16]} exf5 {[%emt 0:01:56]} 24. exf5 {[%emt 0:00:22]} Bf6 {[%emt 0:01:27]} 25. Bxc6 {[%emt 0:04:01]} Qxc6 {[%emt 0:00:03]} 26. Ne4 {[%emt 0:01:12]} Be5 {[%emt 0:00:38]} 27. f6 {[%emt 0:00:56]} d5 {[%emt 0:00:25]} 28. Qg4 {[%emt 0:00:55]} g6 {[%emt 0:00:06]} 29. Ng5 {[%emt 0:00:32]} d4 {[%emt 0:02:02]} 30. Rac1 {[%emt 0:00:29]} Qd7 {[%emt 0:01:27]} 31. Qh4 {[%emt 0:00:11]} h5 {[%emt 0:00:03]} 32. Bd2 {[%emt 0:00:32]} Nd5 {[%emt 0:00:59]} 33. Ne4 {[%emt 0:00:30]} Qg4 {[%emt 0:00:02]} 34. Qf2 {[%emt 0:00:47]} Rdc8 {[%emt 0:01:10]} 35. h3 {[%emt 0:00:22]} Qd7 {[%emt 0:00:22]} 36. Qh4 {[%emt 0:00:33]} Rxc1 {[%emt 0:00:53]} 37. Bxc1 {[%emt 0:00:23]} Rc8 {[%emt 0:02:25]} 38. Bd2 {[%emt 0:00:42]} a4 {[%emt 0:00:31]} 39. Qg5 {[%emt 0:00:18]} Qe6 {[%emt 0:00:13]} 40. Kg1 {[%emt 0:00:43]} Rc6 {[%emt 0:00:17]} 41. Kh1 {[%emt 0:00:31]} Nxf6 {[%emt 0:00:21]} 42. Nxf6+ {[%emt 0:00:30]} Bxf6 {[%emt 0:00:03]} 43. Qf4 {[%emt 0:00:30]} Bg7 {[%emt 0:00:31]} 44. Re1 {[%emt 0:00:24]} Qf6 {[%emt 0:00:25]} 45. Qb8+ {[%emt 0:00:35]} Kh7 {[%emt 0:00:02]} 46. Qb5 {[%emt 0:00:30]} Rc2 {[%emt 0:00:30]} 47. Bg5 {[%emt 0:00:31]} Qf2 {[%emt 0:00:07]} 48. Rg1 {[%emt 0:00:04]} Qg3 {[%emt 0:00:53]} 49. Qd5 {[%emt 0:00:55]} Rf2 {[%emt 0:00:18]} 50. Re1 {[%emt 0:00:31]} Rf5 {[%emt 0:00:12]} 0-1

[Event "21st Indian-chT Women 2023-24"]
[Site "Dharamsala"]
[Date "2024.04.01"]
[Round "4.6"]
[White "Swati Ghate"]
[Black "Ananya Arora"]
[Result "1-0"]
[ECO "B70"]
[WhiteElo "2012"]
[BlackElo "1456"]
[Annotator "RC"]
[PlyCount "61"]
[EventDate "2024.03.28"]
[EventType "team-tourn"]
[EventCountry "IND"]
[SourceTitle "playchess.com"]
[Source "ChessBase"]
[SourceQuality "1"]
[TimeControl "5400+30"]

1. e4 {[%emt 0:00:10]} c5 {[%emt 0:00:05]} 2. Nf3 {[%emt 0:00:20]} Nc6 {[%emt 0:00:05]} 3. d4 {[%emt 0:01:54]} cxd4 {[%emt 0:00:14]} 4. Nxd4 {[%emt 0:00:02]} g6 {[%emt 0:00:08]} 5. Nc3 {[%emt 0:04:40]} Bg7 {[%emt 0:01:42]} 6. Nde2 {[%emt 0:00:15]} Nf6 {[%emt 0:03:19]} 7. g3 {[%emt 0:00:10]} d6 {[%emt 0:01:34]} 8. Bg2 {[%emt 0:00:22]} Bd7 {[%emt 0:01:23]} 9. O-O {[%emt 0:05:24]} O-O {[%emt 0:04:15]} 10. h3 {[%emt 0:01:57]} Qc8 {[%emt 0:08:13]} 11. Kh2 {[%emt 0:02:11]} Ne5 {[%emt 0:06:20]} 12. Bf4 {[%emt 0:14:52]} Nh5 {[%emt 0:07:28]} 13. Nd5 {[%emt 0:01:38]} Re8 {[%emt 0:02:21]} 14. Bg5 {[%emt 0:00:34]} f6 {[%emt 0:00:55]} 15. Bd2 {[%emt 0:04:00]} Bh8 {[%emt 0:06:25]} 16. Bc3 {[%emt 0:05:07]} Ng7 {[%emt 0:03:40]} 17. f4 {[%emt 0:08:32]} Nc4 {[%emt 0:04:39]} 18. Qd3 {[%emt 0:07:53]} Kf7 {[%emt 0:08:41]} 19. Rae1 {[%emt 0:12:10]} Nb6 {[%emt 0:12:00]} 20. e5 {[%emt 0:08:20]} dxe5 {[%emt 0:04:51]} 21. fxe5 {[%emt 0:00:37]} f5 {[%emt 0:01:52]} 22. Nd4 {[%emt 0:05:40]} Nxd5 {[%emt 0:05:54]} 23. Bxd5+ {[%emt 0:01:45]} e6 {[%emt 0:00:18]} 24. Bb3 {[%emt 0:00:04]} a6 {[%emt 0:01:26]} 25. Qd2 {[%emt 0:01:39]} Kg8 {[%emt 0:02:08]} 26. Qh6 {[%emt 0:02:37]} Rf8 {[%emt 0:03:11]} 27. Nf3 {[%emt 0:00:47]} Rd8 {[%emt 0:08:05]} 28. Ng5 {[%emt 0:00:20]} Kf8 {[%emt 0:00:31]} 29. Qxh7 {[%emt 0:00:58]} Ke7 {[%emt 0:01:20]} 30. Bb4+ {[%emt 0:00:02]} Ke8 {[%emt 0:00:26]} 31. Qxh8# {[%emt 0:00:15]} 1-0